Cogmind - Beta 14 @@@ ROGUE MODE // 2024.09.06 @ 21:22:42 Player: Lunace Result: Destroyed by Autobeam Turret with Autobeam Performance ------------- Evolutions (0) 0 Regions Visited (2) 400 Robots Destroyed (20) 100 Value Destroyed (460) 460 Prototype IDs (12) 240 Alien Tech Used (0) 0 Bonus (135) 135 TOTAL SCORE: 1335 Bonus ------- Follower Combat Kills 135 Cogmind --------- Core Integrity 0/250 Matter 300/300 Energy 200/200 System Corruption 0% Temperature Cool (6) Movement Rolling (150) Ox4 Location -10/Subcaves Parts ------- > --- POWER (1) -------- Subdweller Power Source > --- PROPULSION (2) --- Subdweller Monowheel Subdweller Monowheel > --- UTILITY (2) ------ Huge Storage Unit V3-11A's Pendant > --- WEAPON (2) ------- Rocket Launcher Makeshift Axe > --- INVENTORY (25) --- Light Ion Engine Subdweller Power Source Wheel Wheel Wheel Improved Heat Sink High-capacity Battery (250) Seismic Detector Light Armor Plating Scrap Shield Shield Generator Makeshift Hacking Suite Subdweller Laser Powered Cannon Battle Rifle Subdweller Machine Gun Battle Cannon Rocket Launcher Subdweller Shrapnel Launcher Subdweller Shrapnel Launcher Mining Laser Multitool Flamer Peak State ------------ > --- POWER ------------ Subdweller Power Source > --- PROPULSION ------- Subdweller Monowheel Subdweller Monowheel > --- UTILITY ---------- Huge Storage Unit V3-11A's Pendant > --- WEAPON ----------- Rocket Launcher Makeshift Axe > --- INVENTORY -------- Light Ion Engine Subdweller Power Source Wheel Wheel Wheel Improved Heat Sink High-capacity Battery Seismic Detector Light Armor Plating Scrap Shield Shield Generator Makeshift Hacking Suite Medium Laser Subdweller Laser Powered Cannon Battle Rifle Subdweller Machine Gun Battle Cannon Rocket Launcher Subdweller Shrapnel Launcher Mining Laser [Rating: 21] Favorites ----------- Power Subdweller Power Source Engine Subdweller Power Source Propulsion Subdweller Monowheel Treads Light Treads Wheel Subdweller Monowheel Utility Huge Storage Unit Device V3-11A's Pendant Storage Huge Storage Unit Protection Light Armor Plating Weapon Medium Laser Energy Gun Medium Laser Launcher Rocket Launcher Impact Weapon Hammer Slashing Weapon Makeshift Axe Build | -11 -10 -10 ------- Run | Yrd Mat Sub Slots Evolved . | . . . Power . | . . . Propulsion . | . . . Utility . | . . . Weapon . | . . . Parts Attached 36 | 7 19 10 Power 4 | 1 1 2 Engine 4 | 1 1 2 Core . | . . . Reactor . | . . . Propulsion 6 | 2 2 2 Treads 2 | 2 . . Leg . | . . . Wheel 4 | . 2 2 Hover . | . . . Flight . | . . . Utility 10 | 2 7 1 Device 4 | 1 2 1 Storage 4 | 1 3 . Processor . | . . . Hackware . | . . . Protection 2 | . 2 . Artifact . | . . . Weapon 16 | 2 9 5 Energy Gun 10 | 2 6 2 Energy Cannon . | . . . Ballistic Gun . | . . . Ballistic Cannon . | . . . Launcher 1 | . . 1 Special Weapon . | . . . Impact Weapon 4 | . 3 1 Slashing Weapon 1 | . . 1 Piercing Weapon . | . . . Special Melee Weapon . | . . . Unidentified Prototypes 1 | . . 1 Parts Lost 6 | . 5 1 Power 2 | . 2 . Propulsion 3 | . 2 1 Utility . | . . . Weapon 1 | . 1 . Highest Loss Streak 4 | . 4 1 To Critical Strikes . | . . . Average Slot Usage (%) 90 | . 88 92 Engine 10 | . 6 13 Treads 5 | . 14 . Wheel 16 | . 10 21 Device 11 | . 11 11 Storage 14 | . 14 14 Protection 2 | . 2 2 Energy Gun 11 | . 20 4 Launcher 6 | . . 10 Impact Weapon 4 | . 7 2 Slashing Weapon 5 | . . 9 Peak Build Rating 21 | 7 9 21 Average Rating 12 | 4 6 16 On Entrance 4 | . 7 7 Naked Turns . | . . . Heaviest Build 94 | 12 87 94 Greatest Support 40 | 40 40 20 Greatest Overweight (x) 9 | . 4 9 Average Overweight (x) 3 | . 1 4 Largest Inventory Capacity 25 | 8 25 25 Average Capacity 19 | 7 12 25 Most Carried 25 | 3 10 25 Average Carried 13 | 2 7 19 Final Capacity 25 | 8 25 25 Final Carried 25 | 3 10 25 Class Distribution -------------------- 100% | Mutant Dominant Class ---------------- Mutant | -10/Materials Mutant | -10/Subcaves Resources | -11 -10 -10 ----------- Run | Yrd Mat Sub Matter Collected 572 | 270 175 127 Remotely . | . . . Salvage Created 662 | 25 537 100 Parts 36 | 5 22 9 Haulers Intercepted 1 | . 1 . Recyclers Shooed . | . . . Parts Field Recycled . | . . . Retrieved Matter . | . . . Parts Self-Destructed 11 | . . 11 Prevented . | . . . Kills | -11 -10 -10 ------- Run | Yrd Mat Sub Combat Hostiles Destroyed 13 | . 11 2 Melee 3 | . 3 . Guns 5 | . 3 2 Classes Destroyed 9 | 1 6 2 Worker 1 | . 1 . Builder 2 | . 2 . Tunneler 1 | 1 . . Hauler 1 | . 1 . Watcher 2 | . 2 . Swarmer 3 | . 3 . Grunt 8 | . 8 . Artisan 2 | . . 2 Subdweller 2 | . . 2 Best Kill Streak 6 | 1 6 1 Combat Bots Only 5 | . 5 1 Max Kills in Single Turn 1 | 1 1 1 Gunslinging . | . . . Exploded . | . . . Melee 1 | . 1 . Uniques/NPCs Destroyed . | . . . Combat | -11 -10 -10 -------- Run | Yrd Mat Sub Hostile Shots Fired 100 | . 80 20 Missed 26 | . 17 9 Damage Taken 906 | . 699 207 Core 253 | . 134 119 Absorbed by Shields . | . . . Core Remaining (%) 100 | 100 . . Volleys Fired 51 | 1 33 17 Largest 2 | 1 2 2 Hottest 110 | 40 100 110 Shots Fired 84 | 1 51 32 Gun 82 | 1 51 30 Cannon . | . . . Launcher 2 | . . 2 Special . | . . . Kinetic . | . . . Thermal 79 | 1 48 30 Explosive 2 | . . 2 Electromagnetic 3 | . 3 . Robot Hit Streak 10 | 1 8 10 Robot Miss Streak 4 | . 4 2 Penetration Max . | . . . Secondary Targets . | . . . Shots Hit Robots 86 | 1 58 27 Core Hits 24 | 1 16 7 Critical Kills 1 | . 1 . Critical Parts Destroyed 3 | . 3 . Critical Strikes 9 | . 9 . Burn 4 | . 4 . Corrupt 1 | . 1 . Smash 4 | . 4 . Melee Attacks 85 | . 59 26 Impact 68 | . 59 9 Slashing 17 | . . 17 Piercing . | . . . Sneak Attacks 5 | . 3 2 Combat Hostiles . | . . . Follow-up Attacks . | . . . Damage Inflicted 1671 | 12 1136 523 Guns 813 | 12 421 380 Cannons . | . . . Explosions . | . . . Melee 858 | . 715 143 Ramming . | . . . Kinetic . | . . . Thermal 793 | 12 401 380 Explosive . | . . . Electromagnetic 20 | . 20 . Impact 715 | . 715 . Slashing 143 | . . 143 Piercing . | . . . Highest Corruption . | . . . Average Corruption . | . . . Corruption Purged . | . . . Corruption Blocked . | . . . Overload Shots . | . . . Overflow Damage 182 | . 162 20 Projectiles . | . . . Explosions . | . . . Melee 182 | . 162 20 Knockbacks 2 | . 2 . Impact 2 | . 2 . Kinetic . | . . . Secondary . | . . . Self-Inflicted Damage . | . . . Shots . | . . . Rammed . | . . . Targets Rammed . | . . . Kicked . | . . . Crushed . | . . . Highest Temperature 90 | . 90 . Average Temperature 27 | . 27 . Received Heat Transfer 393 | . 381 12 Siege Activations . | . . . Robots Corrupted 5 | . 5 . Combat Hostiles 4 | . 4 . Parts Fried 10 | . 10 . Impact Corruptions 10 | . 10 . Robots Melted 1 | . 1 . Combat Hostiles 1 | . 1 . Parts Melted 2 | . 2 . Heat Transferred 2322 | 25 1480 817 Parts Sabotaged . | . . . Parts Stolen . | . . . Parts Stripped . | . . . Power Chain Reactions . | . . . Alert | -11 -10 -10 ------- Run | Yrd Mat Sub Peak Influence 166 | 5 166 . Initial 3 | . 3 . Average 43 | 1 49 . Maximum Alert Level . | . . . Low Security (%) 100 | 100 100 . Level 1 . | . . . Level 2 . | . . . Level 3 . | . . . Level 4 . | . . . Level 5 . | . . . High Security . | . . . Max Security . | . . . Squads Dispatched 3 | . 3 . Investigation 2 | . 2 . Extermination . | . . . Reinforcement 1 | . 1 . Assault . | . . . Garrison . | . . . Intercept . | . . . Searches Triggered . | . . . Construction Impeded . | . . . Haulers Reinforced . | . . . Active Scanning Responses . | . . . Cargo Convoy Interrupts . | . . . Stealth | -11 -10 -10 --------- Run | Yrd Mat Sub Distress Signals 2 | . 2 . Communications Jammed . | . . . Distress Signals . | . . . Times Spotted 26 | . 19 7 Peak Tracking Total 4 | . 4 2 Tactical Retreats 1 | . 1 . Traps | -11 -10 -10 ------- Run | Yrd Mat Sub Traps Triggered 2 | . 2 . Indirectly . | . . . Trap Hack Attempts . | . . . Triggered . | . . . Disarmed . | . . . Reprogrammed . | . . . Reused . | . . . Traps Extracted . | . . . Installed . | . . . Triggered . | . . . Machines | -11 -10 -10 ---------- Run | Yrd Mat Sub Machines Disabled 1 | . . 1 Max in Single Turn 1 | . . 1 Machines Repaired . | . . . Machines Dismantled . | . . . Machines Sabotaged . | . . . Overloaded Fab Kills . | . . . Hacking | -11 -10 -10 --------- Run | Yrd Mat Sub Machines Accessed 5 | . 3 2 Terminals 3 | . 3 . Fabricators . | . . . Repair Stations . | . . . Recycling Units . | . . . Scanalyzers . | . . . Garrison Access . | . . . Total Hacks 13 | . 9 4 Successful 6 | . 2 4 Failed 7 | . 7 . Catastrophic 3 | . 3 . Database Lockouts . | . . . Manual 9 | . 9 . Terminals 9 | . 9 . Fabricators . | . . . Repair Stations . | . . . Recycling Units . | . . . Scanalyzers . | . . . Garrison Access . | . . . Terminal Hacks 4 | . . 4 Record 3 | . . 3 Derelict Proto ID Bank 1 | . . 1 Fabricator Hacks . | . . . Repair Station Hacks . | . . . Recycling Unit Hacks . | . . . Scanalyzer . | . . . Garrison Access Hacks . | . . . Unauthorized Hacks 2 | . 2 . Terminals 2 | . 2 . Skim 2 | . 2 . Fabricators . | . . . Repair Stations . | . . . Recycling Units . | . . . Scanalyzers . | . . . Garrison Access . | . . . Data Cores Recovered . | . . . Used . | . . . Hacking Detections 3 | . 3 . Full Trace Events . | . . . Feedback Events . | . . . Feedback Blocked . | . . . Robot Schematics Acquired . | . . . Robots Built . | . . . Authchips . | . . . Time . | . . . Total Robot Build Rating . | . . . Part Schematics Acquired . | . . . Parts Built . | . . . Authchips . | . . . Time . | . . . Total Part Build Rating . | . . . Parts Repaired . | . . . Time . | . . . Parts Recycled . | . . . Recycled Matter . | . . . Retrieved Matter . | . . . Retrieved Components . | . . . Parts Scanalyzed . | . . . Part Schematics Acquired . | . . . Parts Damaged . | . . . Bothacking | -11 -10 -10 ------------ Run | Yrd Mat Sub Used RIF Installer . | . . . Robots Hacked . | . . . Non-combat . | . . . Combat . | . . . Robot Hacks Applied . | . . . Relay Couplers Released . | . . . Fabnet Peak Effective % . | . . . Robots Rewired . | . . . Allies Hacked . | . . . Hacks Repelled . | . . . Allies | -11 -10 -10 -------- Run | Yrd Mat Sub Total Allies 4 | . . 4 Largest Group 4 | . . 4 Highest-Rated Group 76 | . . 76 Highest-Rated Ally 19 | . . 19 Total Orders . | . . . Ally Attacks 25 | . . 25 Total Damage 361 | . . 361 Kills 5 | . . 5 Allies Corrupted . | . . . Allies Melted . | . . . Intel | -11 -10 -10 ------- Run | Yrd Mat Sub Robot Analysis Total . | . . . Derelict Logs Recovered 2 | . . 2 Drone Launches . | . . . Drone Recoveries . | . . . Exploration | -11 -10 -10 ------------- Run | Yrd Mat Sub Turns Passed 2753 | 151 1081 1521 Spaces Moved 1371 | 74 464 833 Core 23 | 5 18 . Treads 268 | 69 199 . Legs . | . . . Wheels 1080 | . 247 833 Hover . | . . . Flight . | . . . Fastest Speed 50 | 50 80 140 Average Speed 152 | 152 140 159 Slowest Speed 215 | 160 200 215 Overloaded Moves . | . . . Propulsion Burnouts . | . . . Robots Hopped . | . . . Cave-ins Triggered . | . . . Exploration Rate (%) 45 | 6 77 53 Regions Visited 2 Branch Regions 1 Pre-discovered Areas 1 | . . 1 Known Exits Taken . | . . . Unknown Exits Taken 2 | 1 1 . Scrap Searched 6 | . . 6 Spaces Dug 19 | . 7 12 Terrain Destroyed 35 | . 7 28 Melee 19 | . 7 12 Projectile . | . . . AOE 16 | . . 16 Terrain Rammed . | . . . Walls Destroyed . | . . . Machines Disabled . | . . . Actions | -11 -10 -10 --------- Run | Yrd Mat Sub Total 1802 | 108 734 960 Wait 214 | 23 141 50 Move 1369 | 73 463 833 Hop . | . . . Pick Up 30 | 4 10 16 Fast Attach 18 | 6 8 4 Attach 5 | 1 2 2 Detach 4 | . 2 2 Swap 13 | . 9 4 Drop 13 | . 7 6 Fire 51 | 1 33 17 Melee 85 | . 59 26 Ram . | . . . Kick . | . . . Crush . | . . . Escape Stasis . | . . . Rewire . | . . . Trap . | . . . Miscellaneous . | . . . Route ------- -11/Scrapyard -10/Materials (discovered 6 exits: [*Mat x3] / [*Min x2] / *Sub) -10/Subcaves (discovered 1 exit: [*Mat]) History --------- Turn | Location | Event 42 | -11/Scrapyard | Discovered new exit (range 15) 152 | -11/Scrapyard | Entered Materials 316 | -10/Materials | Build established: Mutant 325 | -10/Materials | Discovered new exit (range 16) 562 | -10/Materials | Discovered new exit (range 11) 692 | -10/Materials | Lost 4 parts (2p1n1w) 799 | -10/Materials | Core integrity fell below 50% 906 | -10/Materials | Discovered new exit (range 5) 1000 | -10/Materials | Discovered new exit (range 7) 1180 | -10/Materials | Discovered new exit (range 15) 1228 | -10/Materials | Discovered new exit (range 3) 1233 | -10/Materials | Entered Subcaves 1235 | -10/Subcaves | A swath of the cavern ceiling suddenly collapsed 1321 | -10/Subcaves | Core integrity fell below 20% 1391 | -10/Subcaves | A swath of the cavern ceiling suddenly collapsed 1396 | -10/Subcaves | Shifting Twisted Machinery released Flamer 1457 | -10/Subcaves | Learned 4 Materials zone layouts 1492 | -10/Subcaves | Visited triangular shrine 1505 | -10/Subcaves | Found Prototype Device 1505 | -10/Subcaves | Identified V3-11A's Pendant 1510 | -10/Subcaves | Befriended Subdweller 1616 | -10/Subcaves | Discovered new exit (range 12) 1622 | -10/Subcaves | Shifting Twisted Machinery released Sub. Monowheel 1623 | -10/Subcaves | Shifting Twisted Machinery released Mak. Hacking Suite 1732 | -10/Subcaves | Disturbed a concealed Subdweller 1735 | -10/Subcaves | Befriended Subdweller 1840 | -10/Subcaves | Visited Clippyterm 1845 | -10/Subcaves | Learned location of Extension (-6) 1976 | -10/Subcaves | Ambushed by angry Subdweller bent on revenge 1980 | -10/Subcaves | Befriended Subdweller 2273 | -10/Subcaves | Visited 4L-MR0's lab 2292 | -10/Subcaves | Found Powered Cannon 2412 | -10/Subcaves | Curiously followed by a Cobbler waking with a query about "LVR3C" 2504 | -10/Subcaves | Learned location of 1 exit from Materials 2565 | -10/Subcaves | Befriended Subdweller 2754 | -10/Subcaves | Destroyed by Autobeam Turret with Autobeam Last Messages --------------- 02467_ Found Sub. Shrapnel Launcher. 02467_ Found Barrage Gun. 02467_ Found 55 Matter. 02476_ WH-3M8(O) collects matter. 02476_ Acquired Sub. Shrapnel Launcher. 02504_ Acquired derelict log, extracted data. Data stored: Materials exits (x1). 02541_ Sneak attack on A2-OQQ(u). 02541_ Destroyed Wheel. 02541_ A2-OQQ(u) cries out in pain. 02541_ A2-OQQ(u) destroyed. 02545_ Dropped Med. Laser. 02545_ Acquired Multitool. 02560_ WH-3M8(O) collects matter. 02561_ 77-XKL(R): "SUBMAD!" 02565_ 77-XKL(R): "SUBSUB?" 02575_ WH-3M8(O) puts together Shrapnel Trap. 02580_ WH-3M8(O) collects matter. 02615_ WH-3M8(O) puts together Mak. Spear. 02714_ WH-3M8(O) collects matter. Map ----- +----------------------------------------------------+ | #####???############ #### | | # ##### # # ## ## ####### | | ## #????# | | # # # # ## #????## | | ### ## # ########## ##### ##????####### | | ?## # ## ##???????## ###???## ##?????????#### | | ?# #????????#####??????## ##???????????# | | ?## #????????????????????# #???????????? | | ??# #### #????????????????????## ##??????????? | | ?# ##??# #????????"?????????#### ####???????? | | ?## #???### """?????" ?????????# ## ##????##? | | ?? ##??????# " ????"" ???????## #???# ## | | ? #?????????#"" ?"""" ?????### #?## # | | #???????????## ?""" ????## ### # | | ??????????????? "" " ????# # | | ?????????????????"??# ???## ### | | ????????????????????# #??# ##?? | | ????????????????????# #### #### #??? | | ?????????????????????# ### ##??## #??? | | ?????????????????????# ### ##????# #??? | | ????????????????????## #### ######## #### | | ????????????????????# ### #?# | | ???????????????????## R ### | | ??????????????????## ### | | ???????????????"""""""""RR ## # ##?# | | ???????????# @R ###### ##??##% ## | | ????????????# #?????##????# ###### | | ?????????????######## #???????#### ##??## | | ????????????????????# #??????## % #??# | | ????????????????????# #??????# ##??# | | ????????????????????# #??????# ##??## | | ????????????????????# #??????# ### #???# | | ????????????????????##### ??????##??# ##??? | | ????????????????????????# #????????## ##?? | | ????????????????????????# ???????## % #?? | | ???????????????????????? ??????# % #?? | | ???????????????????????? ### ??????# ##?? | | ?????????????????????????###?? #?????# ##??? | | ??????????????????????????????? ??????##### #???? | | ???????????????????????????????????????????#"#???? | | ???????????????????????????????????????????###???? | | ?????????????????????????????????????????????????? | | ?????????????????????????????????????????????????? | | ?????????????????????????????????????????????????? | | ?????????????????????????????????????????????????? | | ?????????????????????????????????????????????????? | | ?????????????????????????????????????????????????? | | ?????????????????????????????????????????????????? | | ?????????????????????????????????????????????????? | | ?????????????????????????????????????????????????? | +----------------------------------------------------+ Best States ------------- Heat Dissipation 39 Energy Generation 15 Energy Capacity 200 Matter Stores 300 Matter Capacity 300 Sight Range 16 Terrain Scan Density 10 Armor Coverage 150 Evasion (%) 44 Recoil Reduction 2 Item Schematics ----------------- None Robot Schematics ------------------ None Fabricated ------------ Nothing Alien Tech Used ----------------- None Achievements -------------- None Challenges ------------ None Game ------ Seed RelayAccelerationSource Manual? 0 Play Time 00:20:19 Cumulative 333.0 hours Start 2024.09.06 @ 21:02:14 End 2024.09.06 @ 21:22:42 Sessions 1 Manual Loads 0 Difficulty Rogue Special Mode None Game No. 337 Rogue 332 Adventurer 5 Explorer 0 Win Type - Total 5 Types 4/0/0/1/0/0/0/0/0 Lore% 76 Gallery% 82 Achievement% 67 Wizard Run 0 Options --------- Layout 1 ASCII 0 Keyboard 0 Movement Arrows Keybinds 0 Fullscreen 1 Font 24/Terminus Map View 50x35 Zoom Use 0% Tactical HUD 1 Map Filters NONE Filters NONE Steam 1 RUN: 2087f8af-ea2f-4d14-a302-3867f6894f93